fUSD/lending_fUSD_20240404
["ID","MTS","AMOUNT","RATE_DAILY","PERIOD"]
[321502624,1712251832583,-200.0,0.00037743,2]
[321502625,1712251832592,-74781.32739099,0.00038,4]
[321502626,1712251832602,-2278.96,0.00038027,15]
[321502627,1712251832611,-167.0,0.00038078,2]
[321502628,1712251832621,-3273.51,0.00038129,2]
[321502629,1712251832630,-1326.64,0.00038139,2]
[321502630,1712251832639,-151.38,0.00038206,2]
[321502631,1712251832649,-24536.12855295,0.00038268,2]
[321502632,1712251832658,-14506.5024554,0.00038268,2]
[321502633,1712251832668,-1997.0,0.00038356,2]
[321502634,1712251832677,-423.59,0.00038356,2]
[321502635,1712251832686,-151.0,0.00038428,2]
[321502636,1712251832696,-250.49088,0.00038428,2]
[321502637,1712251832705,-579.31552094,0.00038592,9]
[321502638,1712251832714,-169.63,0.00038594,2]
[321502639,1712251832724,-23181.0119,0.00038688,2]
[321502640,1712251832733,-152.0,0.00038692,3]
[321502641,1712251832743,-155.97526314,0.000387,4]
[321502642,1712251832752,-5000.0,0.00038788,2]
[321502643,1712251832761,-21862.73891642,0.00038789,2]
[321502644,1712251832775,-417.27522362,0.00038789,2]
[321502645,1712251832915,-268.51471333,0.00038789,2]
[321502646,1712251832971,-789.29286824,0.00038789,2]
[321502647,1712251832984,-63397.72857839,0.00038789,2]
[321502648,1712251832995,-792.09566137,0.0003882,2]
[321502649,1712251833005,-2000.0,0.0003887,2]
[321502650,1712251833015,-150.0,0.00038876,2]
[321502651,1712251833025,-1076.06198469,0.00038879,2]
[321502652,1712251833034,-214057.44798454,0.00038884,2]
[321502653,1712251833047,-27847.0306,0.00038884,2]
[321502654,1712251833059,-425901.4006004,0.00038884,2]
[321502714,1712251838089,-179.058338,0.00031781,14]
[321502716,1712251838098,-179.058338,0.00032603,14]
[321502718,1712251838108,-3251696.70829377,0.00038884,2]
[321502728,1712251838246,-2692.07789038,0.00038884,2]
[321502739,1712251839790,-179.058338,0.00033425,14]
[321502740,1712251839800,-787.941702,0.00038884,2]
[321502741,1712251839850,-1418.06908274,0.00038884,2]
[321502742,1712251839985,-8130.03170084,0.00038884,2]
[321502754,1712251842459,-179.058338,0.00034247,14]
[321502755,1712251842469,-179.058338,0.00035068,14]
[321502756,1712251842478,-1110.67857053,0.00038884,2]
[321502758,1712251842675,-6232.11455132,0.00038884,2]
[321502759,1712251842695,-7167.69647047,0.00038884,2]
[321502760,1712251842792,-353375.57098197,0.00038884,2]
[321502783,1712251845530,-179.058338,0.0003589,14]
[321502784,1712251845540,-179.058338,0.00036712,14]
[321502785,1712251845549,-30572.92806495,0.00038884,2]
[321502786,1712251845572,-1146.7774471,0.00038884,2]
[321502787,1712251845724,-291.2772942,0.00038884,2]
[321502788,1712251845736,-1832.01565687,0.00038884,2]
[321502789,1712251845789,-476.17707637,0.00038884,2]
[321502790,1712251845800,-310.00217,0.00038884,2]
[321502835,1712252820368,700.0,0.0003778,120]
[321502879,1712253031665,-361.28696527,0.0003086,4]
[321502881,1712253031674,-1742.43485051,0.0003086,2]
[321502882,1712253031947,-300.1356,0.0003086,2]
[321502883,1712253032007,-1163.71031033,0.0003086,2]
[321502884,1712253032016,-3822.06114475,0.00030861,4]
[321502885,1712253032026,-1051.63669287,0.00030862,4]
[321502886,1712253032035,-152.54363459,0.00030864,2]
[321502887,1712253032044,-530.55108814,0.00031106,4]
[321502888,1712253032054,-156.25,0.00032877,2]
[321502889,1712253032063,-156.25,0.00032877,2]
[321502890,1712253032073,-1109.0,0.000331,2]
[321502891,1712253032083,-1127.64,0.00034326,2]
[321502892,1712253032092,-152.54363459,0.00034346,2]
[321502893,1712253032102,-614.14,0.0003517,2]
[321502894,1712253032112,-250.0,0.00036046,112]
[321502895,1712253032121,-151.38,0.00036342,2]
[321502896,1712253032130,-2134.58,0.00036416,2]
[321502897,1712253032140,-1090.49,0.00036512,2]
[321502898,1712253032150,-9515.97480247,0.00036525,2]
[321502899,1712253032171,-5702.86316281,0.00036525,2]
[321502900,1712253032187,-615.1305125,0.00036525,2]
[321502901,1712253032219,-3230.63302066,0.00036525,2]
[321502960,1712253038509,-4835.39850156,0.00036525,2]
[321502961,1712253038519,-1127.64,0.0003659,2]
[321502962,1712253038528,-1000.0,0.00036704,2]
[321502963,1712253038539,-792.09566138,0.000369,2]
[321502964,1712253038549,-3991.0,0.00036925,2]
[321502965,1712253038559,-248.14,0.00036952,2]
[321502966,1712253038568,-389.67536653,0.00036998,4]
[321502967,1712253038578,-2326.53494178,0.00037,2]
[321502968,1712253038589,-44105.98850969,0.00037,2]
[321502969,1712253038599,-742.9784816,0.00037,2]
[321502970,1712253038609,-952.5420392,0.00037,2]
[321502971,1712253038621,-250.0,0.00037,3]
[321502972,1712253038632,-469.06,0.0003735,2]
[321502973,1712253038642,-1487.1064699,0.00037593,2]
[321502974,1712253038651,-649.00598926,0.00037679,15]
[321502975,1712253038660,-506.90108084,0.0003768,8]
[321502976,1712253038669,-37710.11445928,0.0003768,2]
[321502977,1712253038734,-2202.33184072,0.0003768,2]
[321502978,1712253038745,-1375.82125405,0.0003768,2]
[321502979,1712253038757,-872.22104595,0.0003768,2]
[321502980,1712253038767,-151.0,0.00037687,2]
[321502981,1712253038778,-169.54,0.0003777,2]
[321502982,1712253038787,-599.70075175,0.00037777,2]
[321502983,1712253038835,-1919.24882112,0.00037777,2]
[321502984,1712253038846,-5294.09731464,0.00037777,2]
[321502985,1712253038858,-683.296,0.00037777,2]
[321502995,1712253039886,-4400.35388803,0.00037777,2]
[321502996,1712253042051,-469.0685,0.000369,2]
[321502997,1712253042061,-1762.8775852,0.00037777,2]
[321502998,1712253042109,-399.48359776,0.00036999,4]
[321502999,1712253042119,-143.91643705,0.00037777,2]
[321503000,1712253042171,-269076.17681046,0.00037777,2]
[321503001,1712253042183,-19980.521704,0.00037777,2]
[321503002,1712253042194,-5112.15,0.00037777,2]
[321503003,1712253042205,-1599.90940597,0.00037777,2]
[321503004,1712253042216,-285.22194887,0.00037777,2]
[321503005,1712253042227,-292.50133498,0.00037777,2]
[321503006,1712253042238,-631.72992698,0.00037777,2]
[321503038,1712253042743,-199.54133712,0.00036999,4]
[321503039,1712253042753,-8918.9196675,0.00037777,2]
[321503040,1712253042908,-654.02,0.00037777,2]
[321503041,1712253042920,-635.98507124,0.00037777,2]
[321503042,1712253042932,-409.230828,0.00037777,2]
[321503054,1712253045701,-391.88,0.00037767,3]
[321503055,1712253045712,-3014.91986602,0.00037777,2]
[321503056,1712253045724,-271.75,0.00037777,2]
[321503057,1712253045759,-699.66555776,0.00037777,2]
[321503058,1712253045819,-842.70721383,0.00037777,2]
[321503059,1712253045831,-831.2958,0.00037777,2]
[321503060,1712253045843,-6254.70780033,0.00037777,2]
[321503061,1712253045996,-272.45285571,0.00037766,10]
[321503067,1712253072869,6177.43446613,0.000154,2]
[321503068,1712253082193,531.78196143,9e-05,2]
[321503069,1712253087743,437.15461961,0.00018,2]
[321503070,1712253096653,951.27066082,0.00022,2]
[321503071,1712253098701,155.0,0.00022498,2]
[321503072,1712253100561,3697.08093297,0.00011,2]
[321503074,1712253181590,1590.02422204,0.00015,14]
[321503077,1712253232446,500.0,0.0002,2]
[321503079,1712253276841,2179.6711081,0.00015,2]
[321503082,1712253297871,31096.4718498,0.00015,2]
[321503083,1712253317645,9172.19584099,0.0002,2]
[321503084,1712253326714,466.09569932,0.00022408,2]
[321503086,1712253353592,245.69720265,0.0002,2]
[321503087,1712253401847,6104.65049974,0.00022408,2]
[321503088,1712253504665,1512.70253452,0.00022408,2]
[321503089,1712253540920,155.6142044,0.00022408,2]
[321503090,1712253546231,1955.15869897,0.00022408,2]
[321503091,1712253554020,183.04581568,0.00022408,2]
[321503092,1712253555584,207.58,0.00025229,120]
[321503093,1712253555929,207.58,0.00028382,120]
[321503094,1712253562491,265.03601877,0.00022408,2]
[321503095,1712253563926,8953.95810655,0.00022408,2]
[321503097,1712253776650,153.82,0.00023804,10]
[321503099,1712253940598,1222.49,0.00021454,2]
[321503100,1712253964470,-681.90393791,0.00023283,2]
[321503101,1712253964494,-226.621545,0.00023284,2]
[321503102,1712253964518,-155.0,0.00023402,2]
[321503103,1712253964542,-200.0,0.00023403,2]
[321503104,1712253964565,-1240.33157319,0.00023409,2]
[321503105,1712253964592,-157.86553343,0.00023428,2]
[321503106,1712253964615,-1204.0,0.00023529,2]
[321503107,1712253964638,-1460.2497,0.00023552,2]
[321503108,1712253964661,-200.0,0.00023556,2]
[321503109,1712253964684,-718.0,0.0002365,2]
[321503110,1712253964708,-150.0,0.0002365,2]
[321503111,1712253964732,-150.0,0.0002365,2]
[321503112,1712253964755,-7027.09959347,0.00023651,2]
[321503113,1712254051756,236.11,0.00018909,2]
[321503114,1712254126065,1289.54111803,0.00022927,2]
[321503115,1712254130316,4460.77730843,0.00018909,2]
[321503116,1712254144365,536.0,0.0002499,15]
[321503117,1712254144751,536.0,0.0002498,15]
[321503118,1712254145072,882.0,0.0002499,15]
[321503119,1712254145202,536.0,0.0002497,15]
[321503120,1712254145539,882.0,0.0002498,15]
[321503121,1712254146004,882.0,0.0002497,15]
[321503138,1712254232229,-400.0,0.00023367,2]
[321503139,1712254232238,-1044.27755831,0.00023368,2]
[321503140,1712254232247,-430.88,0.00023369,2]
[321503141,1712254232258,-195.17016549,0.00023449,2]
[321503142,1712254232268,-3155.84658012,0.00023548,2]
[321503143,1712254232278,-5372.04111444,0.00023549,2]
[321503144,1712254232287,-8876.86331766,0.0002355,2]
[321503145,1712254232297,-1066.2218161,0.00023551,2]
[321503146,1712254232306,-1553.5616,0.00023552,2]
[321503147,1712254232315,-150.0,0.00023651,2]
[321503148,1712254232326,-4543.97228953,0.00023651,2]
[321503149,1712254232337,-19179.69148242,0.00023652,2]
[321503150,1712254232347,-250.0,0.00023675,2]
[321503151,1712254232357,-1820.45,0.00023675,2]
[321503152,1712254232367,-7398.9702549,0.00023702,2]
[321503153,1712254232376,-150.99,0.00023702,2]
[321503154,1712254232385,-7693.78,0.00023718,2]
[321503155,1712254232394,-1222.49,0.00023718,2]
[321503156,1712254232404,-2016.35,0.0002372,2]
[321503157,1712254232414,-157.86553342,0.00023796,2]
[321503158,1712254232426,-154.33,0.00023938,2]
[321503159,1712254232436,-506.08071366,0.00024134,2]
[321503160,1712254232446,-3071.96048349,0.00024134,2]
[321503161,1712254232457,-537.36536672,0.00024134,2]
[321503162,1712254232467,-503.78712459,0.00024134,2]
[321503163,1712254232476,-500.0,0.00024134,2]
[321503164,1712254232486,-190.57838376,0.00024134,2]
[321503165,1712254232495,-13597.23350336,0.00024134,2]
[321503166,1712254232504,-500.0,0.00024135,2]
[321503167,1712254232516,-500.0,0.00024135,2]
[321503168,1712254232527,-2177.96914085,0.00024135,2]
[321503169,1712254232538,-77057.82,0.00024136,2]
[321503170,1712254232550,-150.99,0.00024136,2]
[321503171,1712254232561,-157.86553342,0.00024164,2]
[321503172,1712254232570,-1000.0,0.00024168,2]
[321503173,1712254232579,-5196.59,0.00024169,2]
[321503174,1712254232590,-23900.0,0.00024323,2]
[321503176,1712254232599,-300.0,0.0002448,2]
[321503178,1712254232608,-11793.42074117,0.00024481,2]
[321503180,1712254232618,-157.86553342,0.00024532,2]
[321503182,1712254232627,-2347.75098996,0.00024581,2]
[321503184,1712254232636,-778.88911183,0.00024582,2]
[321503186,1712254232645,-4023.27217994,0.00024588,2]
[321503188,1712254232655,-150.99,0.00024588,2]
[321503190,1712254232665,-652.91826248,0.0002459,3]
[321503192,1712254232674,-499.99,0.0002459,2]
[321503194,1712254232683,-1000.0,0.000247,2]
[321503196,1712254232693,-156.90982687,0.00024798,2]
[321503198,1712254232702,-26829.76565101,0.000248,2]
[321503200,1712254232711,-1000.0,0.000248,2]
[321503202,1712254232720,-100000.0,0.000248,2]
[321503204,1712254232729,-797.82457019,0.00024888,2]
[321503206,1712254232738,-457.61603356,0.00024889,2]
[321503208,1712254232748,-169.54,0.0002489,2]
[321503210,1712254232759,-1888.30959056,0.00024898,2]
[321503212,1712254232769,-155.8039683,0.00024899,2]
[321503214,1712254232778,-798.55639177,0.000249,2]
[321503216,1712254232787,-5287.6122,0.000249,2]
[321503218,1712254232797,-105853.2583,0.000249,2]
[321503220,1712254232806,-7838.0756,0.000249,2]
[321503222,1712254232816,-611.2291,0.000249,2]
[321503224,1712254232825,-192.9080552,0.000249,2]
[321503226,1712254232835,-9638.6367,0.000249,2]
[321503228,1712254232845,-5681.13895048,0.000249,2]
[321503230,1712254232854,-500.0,0.000249,2]
[321503232,1712254232863,-178.4391163,0.000249,2]
[321503233,1712254232873,-157.86553342,0.000249,2]
[321503234,1712254232891,-7500.0,0.000249,2]
[321503235,1712254232904,-183.2004686,0.000249,2]
[321503236,1712254232914,-183.2004686,0.000249,2]
[321503237,1712254232925,-183.2004686,0.000249,2]
[321503238,1712254232935,-183.2004686,0.000249,2]
[321503239,1712254232946,-183.2004686,0.000249,2]
[321503240,1712254232957,-183.2004686,0.000249,2]
[321503241,1712254232967,-183.2004686,0.000249,2]
[321503242,1712254232980,-183.2004686,0.000249,2]
[321503243,1712254232990,-183.2004686,0.000249,2]
[321503244,1712254232999,-183.2004686,0.000249,2]
[321503245,1712254233011,-183.2004686,0.000249,2]
[321503246,1712254233020,-183.2004686,0.000249,2]
[321503247,1712254233031,-183.2004686,0.000249,2]
[321503248,1712254233041,-183.2004686,0.000249,2]
[321503249,1712254233052,-183.2004686,0.000249,2]
[321503250,1712254233062,-183.2004686,0.000249,2]
[321503251,1712254233072,-183.2004686,0.000249,2]
[321503252,1712254233082,-183.2004686,0.000249,2]
[321503253,1712254233092,-183.2004686,0.000249,2]
[321503254,1712254233102,-183.2004686,0.000249,2]
[321503255,1712254233112,-183.2004686,0.000249,2]
[321503256,1712254233121,-183.2004686,0.000249,2]
[321503257,1712254233131,-183.2004686,0.000249,2]
[321503258,1712254233141,-183.2004686,0.000249,2]
[321503259,1712254233150,-183.2004686,0.000249,2]
[321503260,1712254233160,-183.2004686,0.000249,2]
[321503261,1712254233170,-183.2004686,0.000249,2]
[321503262,1712254233180,-183.2004686,0.000249,2]
[321503263,1712254233190,-183.2004686,0.000249,2]
[321503264,1712254233199,-183.2004686,0.000249,2]
[321503265,1712254233209,-183.2004686,0.000249,2]
[321503266,1712254233218,-183.2004686,0.000249,2]
[321503267,1712254233228,-183.2004686,0.000249,2]
[321503268,1712254233237,-183.2004686,0.000249,2]
[321503269,1712254233247,-183.2004686,0.000249,2]
[321503270,1712254233261,-183.2004686,0.000249,2]
[321503271,1712254233272,-183.2004686,0.000249,2]
[321503272,1712254233282,-183.2004686,0.000249,2]
[321503273,1712254233292,-183.2004686,0.000249,2]
[321503274,1712254233303,-183.2004686,0.000249,2]
[321503275,1712254233313,-183.2004686,0.000249,2]
[321503276,1712254233322,-183.2004686,0.000249,2]
[321503277,1712254233333,-183.2004686,0.000249,2]
[321503278,1712254233344,-183.2004686,0.000249,2]
[321503279,1712254233354,-183.2004686,0.000249,2]
[321503280,1712254233364,-183.2004686,0.000249,2]
[321503281,1712254233374,-183.2004686,0.000249,2]
[321503282,1712254233384,-183.2004686,0.000249,2]
[321503283,1712254233393,-183.2004686,0.000249,2]
[321503284,1712254233403,-183.2004686,0.000249,2]
[321503285,1712254233412,-153.50857556,0.000249,2]
[321503286,1712254233421,-452.66678032,0.000249,2]
[321503287,1712254233432,-184.84070755,0.000249,2]
[321503288,1712254233441,-10625.4564321,0.000249,2]
[321503289,1712254233450,-188.67159564,0.000249,2]
[321503290,1712254233460,-844.16196066,0.0002499,2]
[321503291,1712254233469,-844.16196066,0.0002499,2]
[321503292,1712254233479,-169.54,0.0002499,2]
[321503293,1712254233488,-169.54,0.0002499,2]
[321503294,1712254233498,-169.54,0.0002499,2]
[321503295,1712254233509,-180.45952597,0.00024998,2]
[321503296,1712254233518,-8892.88281819,0.00024999,2]
[321503297,1712254233527,-110599.41411789,0.00025,2]
[321503298,1712254233541,-559.2790695,0.00025,2]
[321503299,1712254233578,-7603.85073837,0.00025,2]
[321503300,1712254233590,-867.67329241,0.00025,2]
[321503301,1712254233622,-33112.85028532,0.00025,2]
[321503302,1712254233650,-309.80279676,0.00025,2]
[321503303,1712254233661,-323.96581914,0.00025,2]
[321503304,1712254233685,-20711.57943779,0.00025,2]
[321503305,1712254233709,-452.5204978,0.00025,2]
[321503306,1712254233721,-270.38829693,0.00025,2]
[321503323,1712254238308,-324.73348101,0.00023366,2]
[321503325,1712254238317,-1617.54254725,0.00025,2]
[321503327,1712254238329,-1045984.02686178,0.00025,2]
[321503329,1712254238338,-2601.01958159,0.00025,2]
[321503331,1712254238347,-439632.55907057,0.00025,2]
[321503333,1712254238356,-892.48,0.00025,2]
[321503335,1712254238365,-165.54,0.00025209,2]
[321503337,1712254238374,-165.54,0.00025272,2]
[321503339,1712254238384,-165.54,0.00025335,2]
[321503341,1712254238393,-1222.49,0.00025982,2]
[321503343,1712254238402,-211.61,0.00026091,2]
[321503345,1712254238412,-1249.91,0.00026091,2]
[321503347,1712254238422,-1000.0,0.00026354,2]
[321503349,1712254238431,-153.50857541,0.00026596,2]
[321503351,1712254238440,-452.66678021,0.00026637,2]
[321503353,1712254238449,-5681.13895045,0.0002711,2]
[321503355,1712254238458,-11793.42074111,0.00027116,2]
[321503357,1712254238468,-154.2,0.00027256,15]
[321503359,1712254238478,-150.5,0.00027266,15]
[321503361,1712254238487,-150.5,0.00027276,15]
[321503362,1712254238497,-798.55639171,0.00027286,3]
[321503364,1712254238756,-250.0,0.00027397,2]
[321503365,1712254238771,-26829.76565098,0.000274,2]
[321503367,1712254238781,-169.63,0.00027823,2]
[321503368,1712254238790,-1222.49,0.00028245,2]
[321503369,1712254238800,-153.50857541,0.00028293,2]
[321503370,1712254238809,-452.66678021,0.00028374,2]
[321503371,1712254238818,-2045.86199934,0.000286,2]
[321503372,1712254238828,-892.48,0.000286,2]
[321503373,1712254238837,-1249.91,0.0002883,2]
[321503374,1712254238848,-5681.13895045,0.00029321,2]
[321503375,1712254238857,-1000.0,0.00029648,2]
[321503376,1712254238868,-798.55639171,0.00029671,4]
[321503377,1712254238879,-11793.42074111,0.00029752,2]
[321503379,1712254238888,-172.09,0.0002998,15]
[321503380,1712254238902,-169.34,0.0002998,15]
[321503381,1712254238912,-153.50857541,0.00029989,2]
[321503382,1712254238922,-150.5,0.0002999,15]
[321503383,1712254238931,-150.5,0.0002999,15]
[321503384,1712254238943,-3206.28076084,0.0003,2]
[321503385,1712254238953,-405.14841286,0.0003,4]
[321503386,1712254238964,-19294.12077171,0.0003,4]
[321503387,1712254238975,-606.74427312,0.0003,4]
[321503388,1712254238984,-8978.73687988,0.0003,4]
[321503389,1712254238995,-26829.76565098,0.0003,2]
[321503390,1712254239004,-200.0,0.0003,7]
[321503391,1712254239016,-452.66678021,0.0003011,2]
[321503392,1712254239026,-1222.49,0.00030509,2]
[321503393,1712254239036,-167.0,0.00030565,2]
[321503394,1712254239046,-169.63,0.00030775,2]
[321503395,1712254239058,-180.0,0.00031342,2]
[321503396,1712254239067,-5681.13895045,0.00031531,3]
[321503397,1712254239078,-207.58,0.00031536,120]
[321503398,1712254239087,-1249.91,0.0003157,2]
[321503399,1712254239097,-153.50857541,0.00031685,2]
[321503400,1712254239107,-452.66678021,0.00031847,2]
[321503401,1712254239117,-331.73521384,0.00032,4]
[321503402,1712254239127,-188.67159562,0.00032036,2]
[321503403,1712254239137,-798.55639171,0.00032057,5]
[321503404,1712254239147,-151.0,0.00032167,30]
[321503405,1712254239157,-11793.42074111,0.00032387,2]
[321503406,1712254239167,-26829.76565098,0.000326,2]
[321503407,1712254239177,-892.48,0.000326,2]
[321503408,1712254239186,-709.14,0.00032603,2]
[321503409,1712254239196,-1778.81,0.00032603,2]
[321503410,1712254239206,-430.88,0.00032716,2]
[321503411,1712254239216,-1222.49,0.00032773,2]
[321503412,1712254239226,-151.0,0.00032823,7]
[321503413,1712254239235,-156.25,0.00032877,2]
[321503414,1712254239245,-156.25,0.00032877,2]
[321503415,1712254239256,-152.58,0.00032877,2]
[321503416,1712254239266,-3207.16,0.00032877,2]
[321503417,1712254239275,-1000.0,0.00032942,2]
[321503418,1712254239285,-355.0,0.00033,2]
[321503419,1712254239297,-1164.0,0.000331,2]
[321503420,1712254239306,-153.50857541,0.00033381,2]
[321503421,1712254239318,-335.85,0.00033384,2]
[321503422,1712254239328,-151.0,0.00033493,4]
[321503423,1712254239338,-452.66678021,0.00033584,2]
[321503424,1712254239347,-169.63,0.00033727,2]
[321503425,1712254239357,-5681.13895045,0.00033742,5]
[321503426,1712254239366,-151.0,0.00034176,2]
[321503427,1712254239376,-152.58,0.00034371,2]
[321503428,1712254239385,-798.55639171,0.00034443,7]
[321503429,1712254239395,-207.58,0.0003469,120]
[321503430,1712254239405,-22411.80479604,0.0003499,2]
[321503431,1712254239414,-1281.5331215,0.00035,4]
[321503432,1712254239424,-892.48,0.00035,2]
[321503433,1712254239435,-11793.42074111,0.00035023,2]
[321503434,1712254239445,-1222.49,0.00035037,2]
[321503435,1712254239456,-153.50857541,0.00035078,2]
[321503436,1712254239466,-150.0,0.00035197,2]
[321503437,1712254239476,-26829.76565098,0.000352,2]
[321503438,1712254239486,-170.84,0.00035309,2]
[321503439,1712254239495,-452.66678021,0.00035321,2]
[321503440,1712254239505,-150.0,0.00035565,2]
[321503441,1712254239515,-150.0,0.00035734,2]
[321503442,1712254239525,-152.58,0.00035865,2]
[321503443,1712254239534,-150.0,0.00035935,2]
[321503444,1712254239543,-5681.13895045,0.00035952,8]
[321503445,1712254239552,-150.0,0.00036107,2]
[321503446,1712254239562,-150.0,0.00036197,2]
[321503447,1712254239571,-1000.0,0.00036236,2]
[321503448,1712254239580,-150.0,0.00036351,2]
[321503449,1712254239589,-150.0,0.00036519,2]
[321503450,1712254239598,-150.0,0.00036557,2]
[321503451,1712254239607,-150.0,0.00036566,2]
[321503452,1712254239616,-150.0,0.00036592,2]
[321503453,1712254239625,-150.0,0.00036618,2]
[321503454,1712254239635,-150.0,0.00036664,2]
[321503455,1712254239644,-1487.1064699,0.00036664,2]
[321503456,1712254239653,-150.0,0.00036692,2]
[321503457,1712254239662,-150.0,0.00036745,2]
[321503459,1712254239672,-150.0,0.00036755,2]
[321503460,1712254239687,-153.50857541,0.00036774,2]
[321503461,1712254239696,-150.0,0.00036811,2]
[321503462,1712254239706,-150.0,0.00036814,2]
[321503463,1712254239715,-798.55639171,0.00036829,8]
[321503464,1712254239725,-150.0,0.0003684,2]
[321503466,1712254239734,-150.0,0.00036873,2]
[321503467,1712254239743,-150.0,0.00036874,2]
[321503469,1712254239753,-1487.1064699,0.00036915,2]
[321503471,1712254239762,-150.0,0.00036931,2]
[321503473,1712254239773,-5000.0,0.00036998,2]
[321503474,1712254239782,-495.34375369,0.00037,2]
[321503475,1712254239792,-635.05977753,0.00037,2]
[321503476,1712254239801,-37146.94741165,0.00037,2]
[321503477,1712254239811,-250.0,0.00037,3]
[321503478,1712254239820,-1516.81884557,0.00037,2]
[321503479,1712254239829,-1487.1064699,0.00037029,2]
[321503480,1712254239838,-452.66678021,0.00037058,2]
[321503481,1712254239846,-150.0,0.00037123,2]
[321503482,1712254239855,-150.0,0.00037156,2]
[321503483,1712254239865,-150.0,0.00037198,2]
[321503484,1712254239874,-150.0,0.00037278,2]
[321503485,1712254239883,-1222.49,0.00037301,2]
[321503486,1712254239892,-152.58,0.0003736,2]
[321503487,1712254239901,-68005.03385278,0.000374,2]
[321503488,1712254239910,-3000.0,0.000374,2]
[321503489,1712254239919,-150.0,0.00037411,2]
[321503490,1712254239929,-281.13687677,0.00037456,2]
[321503491,1712254239939,-1487.1064699,0.00037515,2]
[321503492,1712254239950,-3000.0,0.0003752,2]
[321503493,1712254239960,-1218.08279729,0.00037577,2]
[321503494,1712254239971,-150.0,0.00037608,2]
[321503495,1712254239980,-150.0,0.00037642,2]
[321503496,1712254239990,-11793.42074111,0.00037658,2]
[321503497,1712254239999,-201.2986141,0.00037666,2]
[321503498,1712254240008,-232113.9151,0.00037677,2]
[321503499,1712254240019,-11844.274,0.00037677,2]
[321503500,1712254240029,-29878.783,0.00037677,2]
[321503501,1712254240038,-151.0,0.00037677,7]
[321503502,1712254240048,-170.74299421,0.0003768,2]
[321503503,1712254240057,-150.0,0.00037724,2]
[321503504,1712254240066,-156.62952372,0.00037765,4]
[321503505,1712254240075,-296.92163089,0.00037765,30]
[321503506,1712254240085,-9641.20606444,0.00037766,10]
[321503507,1712254240094,-880.12814215,0.00037766,4]
[321503508,1712254240103,-1600.45488383,0.00037766,5]
[321503509,1712254240112,-679.23891143,0.00037766,4]
[321503510,1712254240122,-844.16196066,0.00037767,2]
[321503511,1712254240131,-10763.2599749,0.00037773,2]
[321503512,1712254240140,-452.80375642,0.00037774,2]
[321503513,1712254240149,-366.31207375,0.00037775,4]
[321503514,1712254240158,-504.2944,0.00037775,4]
[321503515,1712254240168,-1140.32707256,0.00037776,4]
[321503516,1712254240177,-243113.21500968,0.00037777,2]
[321503517,1712254240186,-245000.0,0.0003778,2]
[321503518,1712254240195,-1516.683365,0.0003778,3]
[321503519,1712254240205,-151.0,0.0003778,7]
[321503520,1712254240214,-151.0,0.0003778,7]
[321503521,1712254240223,-151.0,0.0003778,7]
[321503522,1712254240232,-151.0,0.0003778,7]
[321503523,1712254240242,-151.0,0.0003778,7]
[321503524,1712254240251,-151.80598542,0.00037799,2]
[321503525,1712254240261,-150.0,0.00037799,2]
[321503526,1712254240272,-26829.76565098,0.000378,2]
[321503527,1712254240281,-150.0,0.00037801,2]
[321503528,1712254240291,-3000.0,0.0003783,2]
[321503529,1712254240299,-207.58,0.00037843,120]
[321503530,1712254240309,-150.0,0.00037847,2]
[321503531,1712254240317,-152.0,0.0003787,15]
[321503532,1712254240327,-159.82,0.0003787,15]
[321503533,1712254240337,-156.66,0.0003787,15]
[321503534,1712254240346,-3622.43005136,0.00037877,2]
[321503535,1712254240355,-1000.0,0.00037879,2]
[321503536,1712254240365,-1000.0,0.00037879,2]